bitfinex-derivatives/quotes_SOLF0:USTF0_20251125
["timestamp","ask_amount","ask_price","bid_price","bid_amount"]
[1764092945882,5.27368756,137.46,137.4,3.13517284]
[1764092946083,1.13,137.47,137.4,3.13517284]
[1764092946987,1.17836214,137.45,137.4,3.13517284]
[1764092947189,0.04836214,137.45,137.4,3.13517284]
[1764092947386,1.17836214,137.45,137.4,3.13517284]
[1764092948082,1.17836214,137.45,137.4,0.05517284]
[1764092948291,10.57837938,137.44,137.43,1.76959545]
[1764092948492,1.13,137.43,137.4,0.05517284]
[1764092949395,1.13,137.41,137.4,0.05517284]
[1764092949583,6.41275512,137.41,137.4,0.05517284]
[1764092949782,1.13,137.41,137.4,0.05517284]
[1764092950094,1.18295574,137.42,137.4,0.05517284]
[1764092951189,6.41658685,137.41,137.4,0.05517284]
[1764092951491,1.13,137.41,137.4,0.05517284]
[1764092952493,6.41786246,137.41,137.4,0.05517284]
[1764092954498,1.13,137.41,137.4,0.05517284]
[1764092955492,0.05295574,137.42,137.4,3.13517284]
[1764092956303,1.18295574,137.42,137.4,0.05517284]
[1764092956502,0.05295574,137.42,137.4,3.13517284]
[1764092964202,7.96372038,137.51,137.41,3.0]
[1764092964506,1.18,137.49,137.48,1.76935042]
[1764092964803,11.98863177,137.49,137.48,1.76935042]
[1764092965400,1.18,137.48,137.41,3.0]
[1764092965702,10.80863177,137.47,137.46,1.76983322]
[1764092965904,10.80863177,137.47,137.41,3.0]
[1764092966205,25.1,137.48,137.41,3.0]
[1764092966206,1.18,137.45,137.41,3.0]
[1764092966400,1.23348483,137.44,137.42,0.04643533]
[1764092966801,0.05348483,137.44,137.42,0.04643533]
[1764092967205,1.23348483,137.44,137.42,0.04643533]
[1764092968405,7.78588483,137.44,137.42,0.04643533]
[1764092968605,1.23348483,137.44,137.42,0.04643533]
[1764092970313,7.78558483,137.44,137.42,0.04643533]
[1764092971706,1.23348483,137.44,137.42,0.04643533]
[1764092971912,9.14613525,137.43,137.42,0.04643533]
[1764092972111,3.84925779,137.43,137.42,0.04643533]
[1764092973114,1.18,137.43,137.42,0.04643533]
[1764092973507,1.23348483,137.44,137.42,0.04643533]
[1764092974708,6.48033913,137.43,137.42,0.04643533]
[1764092974907,1.18,137.43,137.42,0.04643533]
[1764092975108,6.48060546,137.43,137.42,0.04643533]
[1764092978917,13.03310546,137.43,137.42,0.04643533]
[1764092979322,18.56187872,137.43,137.42,0.04643533]
[1764092984422,6.5539,137.4,137.37,3.0]
[1764092984616,7.7339,137.4,137.37,3.0]
[1764092984816,1.18,137.39,137.34,3.0]
[1764092985017,25.1,137.43,137.38,3.0]
[1764092985221,5.3060463,137.42,137.38,3.0]
[1764092985424,0.05049346,137.41,137.39,3.05539431]
[1764092986518,0.05049346,137.41,137.39,0.05539431]
[1764092986519,7.78399346,137.41,137.39,0.05539431]
[1764092986724,6.49218185,137.4,137.39,0.05539431]
[1764092987325,9.16143964,137.4,137.39,0.05539431]
[1764092988920,6.5559,137.36,137.33,3.04]
[1764092989223,28.89925779,137.38,137.33,3.04]
[1764092989427,26.23,137.38,137.33,3.04]
[1764092989926,0.04741308,137.37,137.34,3.09114806]
[1764092990316,1.17741308,137.37,137.34,3.09114806]
[1764092992127,0.04741308,137.37,137.34,3.09114806]
[1764092995723,0.04741308,137.37,137.36,3.04]
[1764092997135,0.04741308,137.37,137.35,3.04]
[1764093005741,101.918,137.45,137.35,3.04]
[1764093005742,3.83925779,137.47,137.37,3.17]
[1764093005932,10.74756357,137.46,137.44,4.93873925]
[1764093006132,5.30294311,137.45,137.44,3.17]
[1764093006334,1.17,137.47,137.44,3.17]
[1764093006539,5.3009125,137.46,137.44,3.17]
[1764093006731,0.04985507,137.46,137.44,3.21697142]
[1764093007843,1.17,137.45,137.44,0.04697142]
[1764093008047,2.71911286,137.46,137.44,0.04697142]
[1764093008048,0.04985507,137.46,137.44,3.21697142]
[1764093009743,1.21985507,137.46,137.44,0.04697142]
[1764093010047,1.17,137.44,137.38,3.17]
[1764093011047,0.05582317,137.42,137.41,3.17]
[1764093012342,0.05582317,137.42,137.4,0.04623958]
[1764093012547,0.05582317,137.42,137.4,3.21623958]
[1764093013043,6.78372038,137.49,137.42,3.17]
[1764093013245,6.52987992,137.48,137.45,4.93909425]
[1764093013439,1.23,137.49,137.45,3.17]
[1764093013634,5.29683691,137.48,137.46,4.9384058]
[1764093013844,1.23,137.49,137.46,3.17]
[1764093014045,5.43545029,137.51,137.48,3.17]
[1764093014245,2.49586883,137.55,137.42,101.9313]
[1764093014246,1.23,137.55,137.5,3.17]
[1764093014445,3.18,137.53,137.52,1.76496148]
[1764093014744,3.18,137.52,137.47,3.17]
[1764093014939,3.18,137.52,137.51,1.76524492]
[1764093015136,8.61055545,137.52,137.51,1.76524492]
[1764093015346,3.18,137.52,137.51,1.76524492]
[1764093015849,3.18,137.52,137.47,3.17]
[1764093016048,3.18,137.52,137.32,115.1218]
[1764093016049,2.66925779,137.52,137.44,3.17]
[1764093016241,5.84925779,137.52,137.44,3.17]
[1764093016846,5.84925779,137.52,137.47,0.05223579]
[1764093017051,5.84925779,137.52,137.51,1.76426383]
[1764093017448,12.39755779,137.52,137.51,1.76426383]
[1764093017842,2.96,137.5,137.44,3.17]
[1764093018042,2.66925779,137.49,137.44,3.17]
[1764093018242,2.66925779,137.47,137.41,3.17]
[1764093018843,0.05086227,137.45,137.43,0.05415602]
[1764093019145,0.05086227,137.45,137.43,3.22415602]
[1764093022146,3.01086227,137.45,137.43,0.05415602]
[1764093022553,0.05086227,137.45,137.43,0.05415602]
[1764093023453,0.05086227,137.45,137.43,3.22415602]
[1764093028353,6.60256227,137.45,137.43,3.22415602]
[1764093028655,6.60256227,137.45,137.43,0.05415602]
[1764093028964,2.96,137.44,137.43,0.05415602]
[1764093029352,6.60256227,137.45,137.43,0.05415602]
[1764093029861,6.60256227,137.45,137.43,3.22415602]
[1764093030760,0.05086227,137.45,137.43,3.22415602]
[1764093032549,6.60246227,137.45,137.43,3.22415602]
[1764093035268,0.05086227,137.45,137.43,3.22415602]
[1764093037765,0.05086227,137.45,137.36,3.17]
[1764093037766,2.96,137.43,137.36,3.17]
[1764093038360,34.36770846,137.46,137.36,3.17]
[1764093038561,29.14935687,137.46,137.36,3.17]
[1764093038763,0.04688748,137.42,137.4,3.22590956]
[1764093043272,0.04688748,137.42,137.4,0.05590956]
[1764093043470,3.00688748,137.42,137.4,0.05590956]
[1764093048467,0.04688748,137.42,137.4,3.20590956]
[1764093060978,9.96372038,137.51,137.4,3.20590956]
[1764093061181,5.22791025,137.5,137.49,4.67356005]
[1764093061485,3.18,137.59,137.49,2.9]
[1764093061688,3.18,137.55,137.49,2.9]
[1764093062080,0.05232729,137.53,137.52,2.9]
[1764093062383,3.23193791,137.54,137.51,0.05234628]
[1764093062689,3.23193791,137.54,137.51,2.95234628]
[1764093062893,0.05193791,137.54,137.51,2.95234628]
[1764093063387,0.05193791,137.54,137.51,0.05234628]
[1764093063388,3.23193791,137.54,137.51,0.05234628]
[1764093063574,3.23193791,137.54,137.51,2.95234628]
[1764093063780,0.05193791,137.54,137.51,2.95234628]
[1764093064689,3.23193791,137.54,137.51,2.95234628]
[1764093065390,3.18,137.52,137.44,2.9]
[1764093065578,7.34935687,137.55,137.46,2.9]
[1764093065785,3.18,137.54,137.53,1.76423773]
[1764093066083,3.18,137.54,137.48,2.9]
[1764093066289,3.18,137.57,137.48,2.9]
[1764093066492,0.04828729,137.52,137.5,2.94735535]
[1764093066791,0.04864415,137.52,137.5,2.94735535]
[1764093067093,3.18,137.57,137.5,2.94735535]
[1764093068188,0.05030567,137.55,137.5,2.94735535]
[1764093068389,0.05030567,137.55,137.52,2.9]
[1764093069483,3.23030567,137.55,137.51,2.9]
[1764093070390,0.05030567,137.55,137.51,2.9]
[1764093070891,3.23030567,137.55,137.51,2.9]
[1764093073191,3.23030567,137.55,137.5,2.94735535]
[1764093073691,11.044725,137.59,137.5,0.04735535]
[1764093073886,38.01044171,137.59,137.46,2.9]
[1764093074081,139.82354171,137.59,137.46,2.9]
[1764093074289,61.41599351,137.6,137.46,2.9]
[1764093074290,11.044725,137.56,137.46,2.9]
[1764093074593,6.5479,137.53,137.43,2.9]
[1764093074985,0.04623897,137.49,137.47,0.04946491]
[1764093077899,0.04623897,137.49,137.47,3.23946491]
[1764093078284,2.17623897,137.49,137.47,0.04946491]
[1764093079389,0.04623897,137.49,137.47,0.04946491]
[1764093081295,2.17623897,137.49,137.47,0.04946491]
[1764093083301,8.72603897,137.49,137.47,0.04946491]
[1764093084000,2.17623897,137.49,137.47,0.04946491]
[1764093084704,0.04623897,137.49,137.47,3.23946491]
[1764093091906,2.17623897,137.49,137.47,0.04946491]
[1764093092607,0.04623897,137.49,137.47,3.23946491]
[1764093094012,0.04623897,137.49,137.47,0.04946491]
[1764093094013,2.17623897,137.49,137.47,0.04946491]
[1764093095614,0.04623897,137.49,137.47,3.23946491]
[1764093096714,2.17623897,137.49,137.47,0.04946491]
[1764093105416,8.72583897,137.49,137.47,0.04946491]
[1764093107025,2.17623897,137.49,137.47,0.04946491]
[1764093109523,8.72613897,137.49,137.47,0.04946491]
[1764093109728,2.13,137.48,137.47,0.04946491]
[1764093111723,6.59613897,137.49,137.47,2.94946491]
[1764093111922,8.72613897,137.49,137.47,0.04946491]
[1764093113413,2.13,137.48,137.47,0.04946491]
[1764093113620,4.79663645,137.48,137.42,2.9]
[1764093114325,2.13,137.47,137.43,2.9]
[1764093114526,0.04760402,137.46,137.45,2.9]
[1764093120331,2.13,137.45,137.44,0.0548418]
[1764093121031,4.84424047,137.46,137.44,0.0548418]
[1764093121334,2.13,137.45,137.44,0.0548418]
[1764093122327,0.04760402,137.46,137.44,2.9448418]
[1764093123319,0.04760402,137.46,137.44,9.4966418]
[1764093123531,29.85663645,137.52,137.45,2.89]
[1764093123731,10.59696639,137.51,137.45,2.89]
[1764093124035,7.24976702,137.5,137.45,2.89]
[1764093124233,6.5479,137.53,137.44,9.21843645]
[1764093124234,2.13,137.53,137.47,2.89]
[1764093124439,0.05088171,137.51,137.5,2.89]
[1764093125233,0.05088171,137.51,137.49,2.94037856]
[1764093125732,2.13,137.56,137.5,2.89]
[1764093126034,7.2455971,137.55,137.5,2.89]
[1764093126235,2.66663645,137.57,137.51,2.89]
[1764093126437,8.6757,137.58,137.52,2.89]
[1764093126632,0.05238469,137.56,137.54,2.94421555]
[1764093127425,2.18238469,137.56,137.54,0.05421555]
[1764093128837,29.83663645,137.55,137.54,0.05421555]
[1764093130435,29.83663645,137.55,137.47,2.89]
[1764093130436,2.13,137.54,137.47,2.89]
[1764093130644,4.79663645,137.53,137.47,2.89]
[1764093131146,4.79663645,137.53,137.47,9.4405]
[1764093131335,2.13,137.52,137.48,2.89]
[1764093131534,0.04654557,137.5,137.48,2.94155328]
[1764093132326,0.04654557,137.5,137.48,9.49145328]
[1764093132526,0.04654557,137.5,137.49,2.89]
[1764093135029,2.17654557,137.5,137.48,0.05155328]
[1764093135635,4.79663645,137.49,137.48,0.05155328]
[1764093135841,2.13,137.48,137.42,2.89]
[1764093136031,2.13,137.46,137.4,2.89]
[1764093136738,0.05275788,137.44,137.42,0.04633067]
[1764093136929,0.05275788,137.44,137.42,2.93633067]
[1764093140839,5.46296333,137.51,137.42,2.93633067]
[1764093140840,2.18,137.53,137.44,3.11]
[1764093141036,2.18,137.53,137.47,2.66663645]
[1764093141241,2.18,137.52,137.46,3.11]
[1764093141643,2.18,137.5,137.43,5.77663645]
[1764093141848,0.05251915,137.48,137.45,3.16494354]
[1764093142644,2.23251915,137.48,137.45,0.05494354]
[1764093145852,2.18,137.47,137.45,0.05494354]
[1764093146251,2.23251915,137.48,137.45,0.05494354]
[1764093147550,2.23251915,137.48,137.46,3.11]
[1764093147551,0.05251915,137.48,137.46,3.11]
[1764093147757,0.05251915,137.48,137.45,0.05494354]
[1764093147955,2.23251915,137.48,137.45,3.16494354]
[1764093149450,2.23251915,137.48,137.45,0.05494354]
[1764093151850,8.78271915,137.48,137.45,0.05494354]
[1764093152050,2.18,137.47,137.45,0.05494354]
[1764093152551,2.18,137.46,137.45,0.05494354]
[1764093157266,8.731,137.46,137.45,0.05494354]
[1764093158261,0.05251915,137.48,137.45,3.16494354]
[1764093158751,0.05251915,137.48,137.45,9.71634354]
[1764093158955,0.05251915,137.48,137.46,3.11]
[1764093167957,13.88,137.54,137.47,2.99]
[1764093168362,2.24,137.53,137.47,2.99]
[1764093168965,0.05581399,137.51,137.49,3.04298955]
[1764093169567,0.05581399,137.51,137.49,9.59248955]
[1764093169771,6.40505013,137.56,137.49,3.04298955]
[1764093170371,2.24,137.56,137.5,2.99]
[1764093170677,0.05261096,137.54,137.5,2.99]
[1764093170867,0.05261096,137.54,137.5,9.5391]
[1764093171066,0.05261096,137.54,137.51,2.99]
[1764093172874,2.29261096,137.54,137.51,2.99]
[1764093173075,0.05261096,137.54,137.51,2.99]
[1764093173679,2.29261096,137.54,137.51,2.99]
[1764093175171,0.05261096,137.54,137.51,2.99]
[1764093176780,0.05261096,137.54,137.52,2.99]
[1764093178467,0.05261096,137.54,137.49,6.60238955]
[1764093178468,2.29261096,137.54,137.5,2.99]
[1764093180180,2.29261096,137.54,137.49,0.05298955]
[1764093180479,2.29261096,137.54,137.49,2.94298955]
[1764093188084,0.05261096,137.54,137.49,2.94298955]
[1764093188289,0.05261096,137.54,137.5,2.89]
[1764093188682,0.05261096,137.54,137.52,2.89]
[1764093189281,0.05261096,137.54,137.52,9.4381]
[1764093189481,2.24,137.61,137.53,2.89]
[1764093190189,7.67301331,137.64,137.56,2.89]
[1764093190488,2.24,137.63,137.58,2.89]
[1764093190788,0.05496688,137.6,137.58,2.89]
[1764093191992,0.05496688,137.6,137.59,2.89]
[1764093194297,2.24,137.65,137.59,2.89]
[1764093194488,2.24,137.65,137.64,1.75625578]
[1764093194697,2.24,137.65,137.6,2.89]
[1764093195290,2.28716305,137.64,137.61,2.94084855]
[1764093195795,0.04716305,137.64,137.61,2.94084855]
[1764093195997,2.28716305,137.64,137.61,2.94084855]
[1764093196189,0.04716305,137.64,137.61,2.94084855]
[1764093196894,0.04716305,137.64,137.61,9.48464855]
[1764093197093,0.04716305,137.64,137.62,2.89]
[1764093197297,2.25716305,137.64,137.61,0.05084855]
[1764093197495,0.46,137.62,137.61,0.05084855]
[1764093199998,0.50716305,137.64,137.61,0.05084855]
[1764093204605,0.46,137.62,137.61,0.05084855]
[1764093207406,0.46,137.61,137.52,3.03]
[1764093207605,3.12206825,137.59,137.52,3.03]
[1764093208200,2.66206825,137.62,137.55,3.03]
[1764093208407,0.05154193,137.6,137.57,3.08446422]
[1764093209600,2.71361018,137.6,137.54,3.03]
[1764093210001,0.05154193,137.6,137.54,3.03]
[1764093210603,0.51154193,137.6,137.57,3.03]
[1764093210904,0.46,137.58,137.56,0.05374352]
[1764093218121,0.51154193,137.6,137.56,3.08374352]
[1764093223907,0.46,137.59,137.56,0.05374352]
[1764093224113,0.46,137.57,137.56,0.05374352]
[1764093224313,0.46,137.57,137.51,3.03]
[1764093224515,0.46,137.54,137.51,3.03]
[1764093225316,0.05184632,137.54,137.51,3.0797466]
[1764093227216,0.53184632,137.54,137.51,3.0797466]
[1764093227418,0.53184632,137.54,137.51,0.0497466]
[1764093227419,0.48,137.53,137.51,0.0497466]
[1764093228822,3.14206825,137.52,137.51,0.0497466]
[1764093229820,0.48,137.51,137.46,3.13]
[1764093230928,0.53250343,137.5,137.47,0.04867266]
[1764093231416,0.05250343,137.5,137.47,3.17867266]
[1764093232225,0.53250343,137.5,137.47,3.17867266]
[1764093233325,0.53250343,137.5,137.47,9.72917266]
[1764093233532,0.53250343,137.5,137.48,3.13]
[1764093234231,0.53250343,137.5,137.47,9.72917266]
[1764093235224,0.53250343,137.5,137.48,6.55]
[1764093235424,0.53250343,137.5,137.48,9.68]
[1764093235624,0.53250343,137.5,137.48,6.55]
[1764093236231,0.53250343,137.5,137.47,3.17867266]
[1764093239631,0.05250343,137.5,137.47,3.17867266]
[1764093240335,0.05250343,137.5,137.48,3.11]
[1764093241130,0.05250343,137.5,137.49,3.11]
[1764093246146,0.53250343,137.5,137.47,0.04867266]
[1764093246746,2.66206825,137.49,137.47,0.04867266]
[1764093247044,0.48,137.49,137.47,0.04867266]
[1764093247945,0.53250343,137.5,137.47,3.15867266]
[1764093249444,0.05250343,137.5,137.47,3.15867266]
[1764093249948,0.53250343,137.5,137.47,3.15867266]
[1764093250846,0.05250343,137.5,137.47,3.15867266]
[1764093252948,0.53250343,137.5,137.47,3.15867266]
[1764093253151,0.48,137.48,137.47,0.04867266]
[1764093257348,0.48,137.48,137.44,3.11]
[1764093257349,0.48,137.48,137.42,3.0]
[1764093257540,126.8846,137.52,137.42,3.0]
[1764093257541,0.48,137.46,137.42,3.0]
[1764093258452,0.05016136,137.45,137.43,3.04876239]
[1764093258848,0.53016136,137.45,137.43,3.04876239]
[1764093259052,0.53016136,137.45,137.43,0.04876239]
[1764093260661,0.48,137.44,137.38,3.0]
[1764093261746,0.05600745,137.42,137.4,0.05274391]
[1764093261948,0.05600745,137.42,137.4,3.05274391]
[1764093263647,0.53600745,137.42,137.4,3.05274391]
[1764093267253,0.53600745,137.42,137.35,3.0]
[1764093267548,0.48,137.41,137.35,3.0]
[1764093267751,0.48,137.41,137.39,1.76235758]
[1764093267947,0.48,137.4,137.39,1.76235758]
[1764093268144,0.48,137.4,137.35,3.0]
[1764093268345,7.09034112,137.39,137.36,0.05150279]
[1764093268550,7.09034112,137.39,137.36,3.05150279]
[1764093268854,0.05584112,137.39,137.36,3.05150279]
[1764093274761,102.3961,137.45,137.36,3.05150279]
[1764093274977,25.52,137.45,137.42,4.76195844]
[1764093275168,25.52,137.45,137.44,1.76195844]
[1764093275375,6.5524,137.44,137.42,3.0]
[1764093275666,25.58,137.47,137.42,3.0]
[1764093275871,32.1306,137.47,137.46,1.76034628]
[1764093276575,6.552,137.44,137.43,0.04667102]
[1764093276776,0.54,137.43,137.4,3.0]
[1764093276974,6.5528,137.43,137.4,3.0]
[1764093277373,25.63147899,137.45,137.4,3.0]
[1764093277869,25.63147899,137.45,137.42,3.0]
[1764093278084,25.63192536,137.45,137.42,3.04593437]
[1764093279275,0.05192536,137.45,137.42,3.04593437]
[1764093279473,25.09192536,137.45,137.42,3.04593437]
[1764093280376,25.63192536,137.45,137.42,3.04593437]
[1764093284371,0.54,137.44,137.42,0.04593437]
[1764093284577,0.54,137.44,137.39,3.0]
[1764093285467,0.54,137.44,137.4,0.03881898]
[1764093285672,0.54,137.44,137.4,3.03881898]
[1764093291186,0.52,137.43,137.4,3.03881898]
[1764093291586,0.52,137.43,137.4,0.03881898]
[1764093292295,0.52,137.42,137.4,0.03881898]
[1764093293585,0.52,137.42,137.4,3.22881898]
[1764093294089,0.52,137.41,137.4,0.03881898]
[1764093294392,6.5539,137.4,137.35,3.19]
[1764093294597,0.52,137.4,137.35,3.19]
[1764093294797,25.54,137.4,137.35,3.19]
[1764093295289,0.05045867,137.39,137.35,3.19]
[1764093295494,0.57045867,137.39,137.35,3.19]
[1764093299198,6.5549,137.38,137.35,3.19]
[1764093299693,7.0955,137.37,137.3,2.89]
[1764093299898,0.04901623,137.35,137.3,2.89]
[1764093301498,6.60531623,137.35,137.3,2.89]
[1764093301992,6.5568,137.34,137.3,2.89]
[1764093302191,0.58901623,137.35,137.3,2.89]
[1764093302583,0.04901623,137.35,137.3,2.89]
[1764093302787,6.5569,137.34,137.3,2.89]
[1764093303289,6.5573,137.33,137.3,2.89]
[1764093305392,0.58901623,137.35,137.3,2.89]
[1764093308207,0.04901623,137.35,137.3,2.89]
[1764093309304,0.04901623,137.35,137.3,9.4486]
[1764093309503,0.04901623,137.35,137.31,2.89]
[1764093310696,0.04901623,137.35,137.32,2.89]
[1764093311707,0.58901623,137.35,137.32,2.89]
[1764093313305,0.58901623,137.35,137.29,9.4488]
[1764093313508,0.58901623,137.35,137.3,2.89]
[1764093314209,0.58901623,137.35,137.3,9.4486]
[1764093314408,0.58901623,137.35,137.31,2.89]
[1764093315109,0.58901623,137.35,137.32,2.89]
[1764093315509,0.04901623,137.35,137.32,2.89]
[1764093316211,0.04901623,137.35,137.32,9.4475]
[1764093316612,0.04901623,137.35,137.33,2.89]
[1764093319511,0.58901623,137.35,137.27,6.5599]
[1764093319716,0.58901623,137.35,137.31,3.01]
[1764093320014,0.04716305,137.34,137.31,3.01]
[1764093321118,0.04716305,137.34,137.24,3.01]
[1764093321119,0.58716305,137.34,137.24,3.01]
[1764093321419,0.04805232,137.3,137.24,3.01]
[1764093322521,0.54,137.26,137.21,3.01]
[1764093322820,0.54,137.24,137.21,3.01]
[1764093323211,0.54,137.24,137.14,3.01]
[1764093323411,0.05320319,137.2,137.14,3.01]
[1764093327316,0.54,137.17,137.09,3.01]
[1764093327616,0.04660189,137.14,137.09,3.01]
[1764093330713,3.26727178,137.14,137.09,3.01]
[1764093331821,0.54,137.13,137.09,3.01]
[1764093332322,3.26727178,137.14,137.09,3.01]
[1764093332527,0.04660189,137.14,137.09,3.01]
[1764093334621,0.54,137.2,137.11,3.01]
[1764093334823,0.59,137.19,137.18,1.75971653]
[1764093335016,0.59,137.19,137.12,3.01]
[1764093335216,0.59,137.19,137.18,1.7596801]
[1764093335421,0.59,137.19,137.18,0.83084771]
[1764093335620,0.59,137.19,137.17,0.0466019]
[1764093335820,0.59,137.16,137.12,3.01]
[1764093336128,0.0545976,137.15,137.13,3.0566019]
[1764093336620,0.0545976,137.15,137.13,0.0466019]
[1764093336824,0.59,137.14,137.13,0.0466019]
[1764093337621,2.05,137.14,137.13,0.0466019]
[1764093337926,29.83066989,137.14,137.07,3.01]
[1764093338121,28.37066989,137.14,137.07,3.01]
[1764093338529,25.69,137.14,137.07,3.01]
[1764093338719,0.0518225,137.12,137.07,3.01]
[1764093342831,0.6418225,137.12,137.07,3.01]
[1764093344923,7.1579,137.11,137.07,3.01]
[1764093346823,0.59,137.11,137.07,3.01]
[1764093347329,25.69,137.11,137.07,3.01]
[1764093348734,0.59,137.1,137.07,3.01]
[1764093349332,6.5688,137.09,137.03,2.98]
[1764093349529,0.04988145,137.07,137.03,2.98]
[1764093350930,6.61968145,137.07,137.03,2.98]
[1764093351130,0.04988145,137.07,137.03,2.98]
[1764093352027,0.63988145,137.07,137.03,2.98]
[1764093352224,0.04988145,137.07,137.03,2.98]
[1764093353439,6.5703,137.06,137.03,2.98]
[1764093354140,6.5707,137.05,137.03,2.98]
[1764093355239,0.04988145,137.07,137.03,2.98]
[1764093355742,0.63988145,137.07,137.03,2.98]
[1764093356036,0.63988145,137.07,136.98,2.98]
[1764093356236,0.05489239,137.04,136.98,2.98]
[1764093357341,25.15489239,137.04,136.98,2.98]
[1764093357637,0.05489239,137.04,136.98,2.98]
[1764093358039,0.05489239,137.04,136.99,2.98]
[1764093360243,0.05489239,137.04,137.0,3.02]
[1764093361242,0.65489239,137.04,137.0,3.02]
[1764093362639,0.05489239,137.04,137.0,3.02]
[1764093365448,0.05489239,137.04,137.02,3.02]
[1764093366346,0.05489239,137.04,137.03,3.02]
[1764093367749,0.6,137.08,137.03,3.02]
[1764093368054,5.48001063,137.07,137.03,3.02]
[1764093368243,0.6,137.08,137.03,3.02]
[1764093368451,5.48340748,137.07,137.03,3.02]
[1764093368662,0.04771895,137.06,137.04,3.0682766]
[1764093371755,6.72126843,137.11,137.04,3.0682766]
[1764093372052,6.72126843,137.14,137.08,3.02]
[1764093372250,5.49202448,137.13,137.08,3.02]
[1764093372442,0.64,137.15,137.08,3.02]
[1764093372644,5.49335513,137.14,137.08,3.02]
[1764093372845,5.49335513,137.14,137.07,2.68399448]
[1764093372846,0.04730961,137.12,137.1,3.07396064]
[1764093373256,0.68730961,137.12,137.1,0.05396064]
[1764093374453,0.04730961,137.12,137.1,3.07396064]
[1764093386365,0.68730961,137.12,137.1,0.05396064]
[1764093386663,0.68730961,137.12,137.1,2.94396064]
[1764093386863,0.04730961,137.12,137.1,2.94396064]
[1764093389469,0.68730961,137.12,137.1,2.94396064]
[1764093390467,0.04730961,137.12,137.1,2.94396064]
[1764093392874,6.61460961,137.12,137.1,2.94396064]
[1764093393074,0.04730961,137.12,137.1,2.94396064]
[1764093393682,0.68730961,137.12,137.1,0.05396064]
[1764093394476,0.64,137.11,137.1,0.05396064]
[1764093395477,25.72,137.11,137.1,0.05396064]
[1764093396290,0.64,137.08,137.03,2.89]
[1764093396884,0.64,137.07,137.03,2.89]
[1764093397278,0.04633561,137.06,137.04,0.04603872]
[1764093398281,0.04633561,137.06,137.04,2.93603872]
[1764093405280,6.5679,137.11,137.04,2.93603872]
[1764093405481,6.5679,137.11,137.04,2.89]
[1764093406088,0.05154229,137.09,137.07,2.89]
[1764093408494,29.95949539,137.14,137.07,2.89]
[1764093408995,6.5674,137.12,137.07,2.89]
[1764093409586,0.05207812,137.11,137.09,3.13]
[1764093409780,6.61987812,137.11,137.09,3.13]
[1764093410092,0.79207812,137.11,137.08,3.18486224]
[1764093410691,6.5685,137.1,137.08,0.05486224]
[1764093410888,0.74,137.09,137.08,0.05486224]
[1764093411594,0.74,137.1,137.08,0.05486224]
[1764093412986,0.74,137.1,137.08,3.18486224]
[1764093416002,30.06157351,137.11,137.08,3.18486224]
[1764093416602,36.62937351,137.11,137.08,3.18486224]
[1764093419001,0.74,137.1,137.08,3.18486224]
[1764093419199,0.74,137.1,137.08,0.05486224]
[1764093419596,0.74,137.1,137.08,2.94486224]
[1764093420304,7.3083,137.1,137.08,2.94486224]
[1764093421705,7.3083,137.1,137.08,0.05486224]
[1764093421896,6.5687,137.09,137.08,0.05486224]
[1764093422096,7.3087,137.09,137.08,0.05486224]
[1764093422302,6.5698,137.07,137.04,2.89]
[1764093422610,0.74,137.08,137.04,2.89]
[1764093422798,7.3093,137.08,137.04,2.89]
[1764093423509,7.3093,137.08,136.97,4.18949539]
[1764093423510,0.04995628,137.07,137.05,2.94139152]
[1764093423711,0.04847001,137.07,137.05,2.94578423]
[1764093423917,0.74,137.06,137.05,0.05578423]
[1764093424808,7.35817001,137.07,137.05,0.05578423]
[1764093425211,0.04847001,137.07,137.05,2.94578423]
[1764093426310,6.61837001,137.07,137.05,2.94578423]
[1764093426518,0.74,137.05,137.0,2.89]
[1764093426813,4.92949539,137.04,137.0,2.89]